fUSD/lending_fUSD_20240516
["ID","MTS","AMOUNT","RATE_DAILY","PERIOD"]
[327112178,1715823041531,-200.0,0.000127,4]
[327112179,1715823041540,-275.72,0.00012703,2]
[327112180,1715823041549,-2100.0,0.00012717,2]
[327112181,1715823041558,-12649.23290629,0.0001275,2]
[327112182,1715823041567,-1000.0,0.0001275,2]
[327112183,1715823041577,-240.0,0.00012773,2]
[327112184,1715823041586,-1000.0,0.00012776,2]
[327112185,1715823041595,-152.53333666,0.00012776,2]
[327112186,1715823041605,-158.09412827,0.00012776,2]
[327112187,1715823041614,-150.56,0.0001279,2]
[327112188,1715823041623,-150.56,0.0001279,2]
[327112189,1715823041633,-150.56,0.0001279,2]
[327112190,1715823041642,-150.56,0.0001279,2]
[327112191,1715823041652,-150.56,0.0001279,2]
[327112192,1715823041661,-150.56,0.0001279,2]
[327112193,1715823041671,-150.56,0.0001279,2]
[327112194,1715823041681,-150.56,0.0001279,2]
[327112195,1715823041690,-150.56,0.0001279,2]
[327112196,1715823041701,-150.56,0.0001279,2]
[327112197,1715823041710,-150.56,0.0001279,2]
[327112198,1715823041719,-150.56,0.0001279,2]
[327112199,1715823041729,-150.56,0.0001279,2]
[327112200,1715823041739,-150.56,0.0001279,2]
[327112201,1715823041749,-150.56,0.0001279,2]
[327112202,1715823041759,-150.56,0.0001279,2]
[327112203,1715823041772,-150.56,0.0001279,2]
[327112204,1715823041781,-150.56,0.0001279,2]
[327112205,1715823041909,-150.56,0.0001279,2]
[327112206,1715823041919,-150.56,0.0001279,2]
[327112207,1715823041930,-150.56,0.0001279,2]
[327112208,1715823041939,-150.56,0.0001279,2]
[327112209,1715823041949,-150.56,0.0001279,2]
[327112210,1715823041959,-150.56,0.0001279,2]
[327112211,1715823041968,-156.27651748,0.0001279,2]
[327112212,1715823041978,-3627.39402053,0.00012791,2]
[327112213,1715823041988,-744478.11534556,0.000128,2]
[327112214,1715823042003,-2141.31096753,0.000128,2]
[327112220,1715823043519,-312.16935958,0.00011821,2]
[327112221,1715823043532,-627.09571974,0.00011821,2]
[327112222,1715823043542,-549.091,0.0001251,2]
[327112223,1715823043551,-989.03451821,0.00012776,2]
[327112224,1715823043560,-88.33732178,0.000128,2]
[327112225,1715823043572,-2377.98218144,0.000128,2]
[327112226,1715823043584,-823.17260833,0.000128,2]
[327112227,1715823043595,-20000.0,0.000128,2]
[327112228,1715823043606,-1576.9379362,0.000128,2]
[327112232,1715823044444,-150.0,0.00011989,2]
[327112233,1715823044454,-150.0,0.00012001,2]
[327112234,1715823044463,-150.0,0.00012032,2]
[327112235,1715823044472,-150.0,0.00012053,2]
[327112236,1715823044481,-150.0,0.00012068,2]
[327112237,1715823044490,-150.0,0.00012078,2]
[327112238,1715823044499,-24.66298867,0.0001208,2]
[327112239,1715823044510,-125.33701133,0.0001208,2]
[327112240,1715823044520,-150.0,0.00012104,2]
[327112241,1715823044529,-142.7890651,0.00012119,2]
[327112242,1715823044540,-7.2109349,0.00012119,2]
[327112243,1715823044550,-150.0,0.0001212,2]
[327112244,1715823044560,-150.0,0.00012138,2]
[327112245,1715823044569,-150.0,0.00012167,2]
[327112246,1715823044578,-150.0,0.0001219,2]
[327112247,1715823044588,-150.0,0.00012203,2]
[327112248,1715823044598,-123.15082208,0.00012226,2]
[327112249,1715823044612,-26.84917792,0.00012226,2]
[327112250,1715823044622,-311.04118353,0.000128,2]
[327112251,1715823044834,-169.20400343,0.0001182,2]
[327112252,1715823044844,-427.60200597,0.000128,2]
[327112253,1715823044856,-1049.700003,0.000128,2]
[327112254,1715823044867,-450.180002,0.000128,2]
[327112255,1715823044879,-824.87884786,0.000128,2]
[327112256,1715823044891,-6052.53318049,0.000128,2]
[327112257,1715823044902,-209112.8630217,0.000128,2]
[327112258,1715823044912,-1238.5,0.000128,3]
[327112259,1715823044922,-10124.0,0.000128,2]
[327112260,1715823044931,-114677.9504469,0.000128,2]
[327112261,1715823044943,-329.70014336,0.000128,2]
[327112262,1715823044954,-1017.6830018,0.000128,2]
[327112263,1715823044966,-1176.28360426,0.000128,2]
[327112264,1715823045120,-342.3,0.000128,2]
[327112265,1715823045132,-453.999994,0.000128,2]
[327112266,1715823045144,-1502.14020389,0.000128,2]
[327112267,1715823045156,-1955.28833964,0.000128,2]
[327112273,1715823046495,-2104.077,0.00012717,2]
[327112274,1715823046504,-11224.26248706,0.000128,2]
[327112275,1715823046515,-10797.70756412,0.000128,2]
[327112276,1715823046528,-5102.48764898,0.000128,2]
[327112277,1715823046538,-431.60659171,0.000128,2]
[327112278,1715823046550,-3282.25773088,0.000128,2]
[327112279,1715823046561,-3311.019446,0.000128,2]
[327112280,1715823046572,-308.25,0.000128,2]
[327112281,1715823046583,-1362.98079444,0.000128,2]
[327112282,1715823046594,-254.86173603,0.000128,2]
[327112283,1715823046606,-411533.22026693,0.000128,2]
[327112284,1715823046615,-200.0,0.000128,4]
[327112285,1715823046625,-150.56,0.00012845,2]
[327112286,1715823046634,-3074.0600657,0.00012846,2]
[327112287,1715823046643,-2249.4404053,0.00012846,2]
[327112288,1715823046652,-166.8488023,0.00012846,2]
[327112289,1715823046662,-150.56,0.00012854,2]
[327112290,1715823046671,-150.56,0.00012854,2]
[327112291,1715823046680,-150.56,0.00012854,2]
[327112292,1715823046689,-150.56,0.00012854,2]
[327112293,1715823046699,-150.56,0.00012854,2]
[327112294,1715823046708,-150.56,0.00012854,2]
[327112295,1715823046718,-150.56,0.00012854,2]
[327112296,1715823046727,-150.56,0.00012854,2]
[327112297,1715823046736,-150.56,0.00012854,2]
[327112298,1715823046746,-150.56,0.00012854,2]
[327112299,1715823046755,-150.56,0.00012854,2]
[327112300,1715823046769,-150.56,0.00012854,2]
[327112301,1715823046778,-150.56,0.00012854,2]
[327112302,1715823046788,-150.56,0.00012854,2]
[327112303,1715823046797,-150.56,0.00012854,2]
[327112304,1715823046807,-150.56,0.00012854,2]
[327112305,1715823046817,-150.56,0.00012854,2]
[327112306,1715823046826,-150.56,0.00012854,2]
[327112307,1715823046837,-150.56,0.00012854,2]
[327112308,1715823046848,-150.56,0.00012854,2]
[327112309,1715823046857,-150.56,0.00012854,2]
[327112310,1715823046866,-150.56,0.00012854,2]
[327112311,1715823046876,-150.56,0.00012854,2]
[327112312,1715823046886,-150.56,0.00012854,2]
[327112313,1715823046895,-150.56,0.00012854,2]
[327112314,1715823046904,-150.56,0.00012854,2]
[327112315,1715823046914,-150.56,0.00012854,2]
[327112316,1715823046923,-150.56,0.00012854,2]
[327112317,1715823046933,-150.56,0.00012854,2]
[327112318,1715823046943,-150.56,0.00012854,2]
[327112319,1715823046953,-150.56,0.00012854,2]
[327112320,1715823046963,-150.56,0.00012854,2]
[327112321,1715823046972,-150.56,0.00012854,2]
[327112322,1715823046982,-150.56,0.00012854,2]
[327112323,1715823046991,-150.56,0.00012854,2]
[327112324,1715823047001,-150.56,0.00012854,2]
[327112325,1715823047011,-150.56,0.00012854,2]
[327112326,1715823047020,-150.56,0.00012854,2]
[327112327,1715823047030,-150.56,0.00012854,2]
[327112328,1715823047039,-150.56,0.00012854,2]
[327112329,1715823047048,-150.56,0.00012854,2]
[327112330,1715823047058,-150.56,0.00012854,2]
[327112331,1715823047067,-150.56,0.00012854,2]
[327112332,1715823047076,-150.56,0.00012854,2]
[327112333,1715823047085,-150.56,0.00012854,2]
[327112334,1715823047095,-150.56,0.00012854,2]
[327112335,1715823047104,-150.56,0.00012854,2]
[327112336,1715823047113,-150.56,0.00012854,2]
[327112337,1715823047122,-150.56,0.00012854,2]
[327112338,1715823047135,-150.56,0.00012854,2]
[327112339,1715823047144,-150.56,0.00012854,2]
[327112340,1715823047154,-150.56,0.00012854,2]
[327112341,1715823047164,-3428.2490093,0.00012855,2]
[327112342,1715823047174,-2500.486988,0.00012855,2]
[327112343,1715823047183,-166.8488023,0.00012855,2]
[327112344,1715823047192,-36218.35271,0.00012855,2]
[327112345,1715823047202,-3133.53736117,0.00012855,2]
[327112346,1715823047541,-707.66212418,0.00011819,2]
[327112347,1715823047552,-6.57434842,0.00012836,2]
[327112348,1715823047564,-251.06902402,0.00012836,2]
[327112349,1715823047574,-318.57097598,0.00012855,2]
[327112350,1715823047586,-415.0,0.00012855,2]
[327112351,1715823271614,10463.87552815,6.94e-05,2]
[327112352,1715823401938,1199.85544141,0.00011,2]
[327112353,1715823467058,409.57557879,0.00011,2]
[327112354,1715823484553,409.57557879,0.00011,2]
[327112355,1715823484981,392.77421257,0.00010931,2]
[327112356,1715823502556,453.35480546,0.00011,2]
[327112357,1715823711988,250.0,0.00010693,2]
[327112358,1715823738773,180.11767275,0.00011,2]
[327112359,1715823752749,180.11767275,0.00011,2]
[327112360,1715823772761,180.11767275,0.00011,2]
[327112361,1715823788757,180.11767275,0.00011,2]
[327112362,1715823804879,180.11767275,0.00011,2]
[327112363,1715823818214,160.0,0.00010691,2]
[327112364,1715823822813,180.11767275,0.00011,2]
[327112365,1715823826791,156.45,0.0001078,2]
[327112366,1715823827014,156.45,0.00010813,2]
[327112367,1715823827540,156.45,0.00010846,2]
[327112368,1715823828220,156.45,0.00010879,2]
[327112369,1715823828397,156.45,0.00010912,2]
[327112370,1715823828491,156.45,0.00010946,2]
[327112371,1715823828789,156.45,0.00010979,2]
[327112372,1715823838907,180.11767275,0.00011,2]
[327112373,1715823860769,215.19563497,0.00011,2]
[327112374,1715823899094,738.52,0.00010612,2]
[327112379,1715823939168,46907.64,0.00010705,2]
[327112391,1715824174450,364.97629112,0.00011,2]
[327112392,1715824182886,643.6083613,0.00021,90]
[327112393,1715824187729,2327.83056448,0.00011,2]
[327112401,1715824232300,-455.70176473,0.00011002,2]
[327112403,1715824232313,-394.45045181,0.00011002,2]
[327112404,1715824232323,-155.0,0.00011003,2]
[327112405,1715824232332,-685.99323766,0.00011003,2]
[327112407,1715824232342,-940.61655579,0.00011004,2]
[327112409,1715824232352,-156.45,0.00011012,2]
[327112411,1715824232365,-168.29,0.00011041,2]
[327112412,1715824232375,-21.84969902,0.00011045,2]
[327112413,1715824232388,-134.60030098,0.00011045,2]
[327112414,1715824232398,-162.91,0.00011057,2]
[327112415,1715824232409,-156.45,0.00011078,2]
[327112416,1715824232419,-250.0,0.00011095,2]
[327112417,1715824232428,-156.45,0.00011111,2]
[327112418,1715824232438,-156.45,0.00011144,2]
[327112419,1715824232448,-156.45,0.00011177,2]
[327112420,1715824232458,-156.45,0.0001121,2]
[327112421,1715824232468,-156.45,0.00011243,2]
[327112422,1715824232478,-904.0,0.00011264,2]
[327112423,1715824232487,-156.45,0.00011276,2]
[327112424,1715824232498,-151.47,0.00011293,2]
[327112425,1715824232507,-156.45,0.00011309,2]
[327112426,1715824232517,-6986.91,0.00011328,2]
[327112427,1715824232526,-156.45,0.00011342,2]
[327112428,1715824232536,-499.99,0.00011362,2]
[327112429,1715824232546,-156.84,0.00011616,2]
[327112430,1715824232556,-156.84,0.00011628,2]
[327112431,1715824232565,-156.84,0.00011639,2]
[327112432,1715824232576,-156.84,0.00011651,2]
[327112433,1715824232586,-156.84,0.00011662,2]
[327112434,1715824232595,-156.84,0.00011674,2]
[327112435,1715824232605,-2004.53294957,0.00011692,2]
[327112436,1715824232618,-1030.80826547,0.00011692,2]
[327112437,1715824232630,-3971.07024,0.00011692,2]
[327112438,1715824232642,-363.6,0.00011692,2]
[327112439,1715824232653,-2868.15296148,0.00011692,2]
[327112441,1715824232859,-5792.33143784,0.00011692,2]
[327112442,1715824232876,-3573.21935056,0.00011692,2]
[327112443,1715824232885,-263.4691,0.00011693,2]
[327112444,1715824232893,-609.846,0.00011693,2]
[327112445,1715824232902,-27266.85215187,0.00011693,2]
[327112446,1715824232913,-6936.01689433,0.00011693,2]
[327112447,1715824232998,-339.7200004,0.00011693,2]
[327112448,1715824233010,-4613.9151534,0.00011693,2]
[327112449,1715824233020,-500.0,0.00011706,2]
[327112450,1715824233030,-1786.0848466,0.000118,2]
[327112451,1715824233041,-697.57372718,0.000118,2]
[327112452,1715824233053,-1557.25584552,0.000118,2]
[327112453,1715824233070,-4386.35969042,0.000118,2]
[327112454,1715824233083,-258.79980467,0.000118,2]
[327112455,1715824233154,-432.92,0.000118,2]
[327112456,1715824233167,-273.09273276,0.000118,2]
[327112457,1715824233177,-51.99961629,0.000118,2]
[327112469,1715824238392,-826.17526321,0.000118,2]
[327112470,1715824238402,-1000.0,0.00011822,2]
[327112471,1715824238411,-914.72948,0.00011838,2]
[327112472,1715824238421,-188.426644,0.00011838,2]
[327112473,1715824238430,-302.860266,0.00011838,2]
[327112474,1715824238439,-158.668983,0.00011838,2]
[327112475,1715824238448,-200.0,0.0001188,2]
[327112476,1715824238457,-5567.8121,0.00011895,2]
[327112477,1715824238466,-10467.172,0.000119,2]
[327112478,1715824238476,-24947.0819,0.000119,2]
[327112479,1715824238487,-1000.0,0.00011938,2]
[327112480,1715824238496,-2500.0,0.00011955,2]
[327112481,1715824238505,-1012.1379,0.00011955,2]
[327112482,1715824238514,-200.0,0.00011967,2]
[327112483,1715824238522,-420.44,0.00011978,2]
[327112484,1715824238531,-914.72948,0.00011986,2]
[327112485,1715824238541,-302.860266,0.00011986,2]
[327112486,1715824238550,-868.43,0.00011995,2]
[327112487,1715824238559,-959.91364377,0.00012,2]
[327112488,1715824238568,-548.23495364,0.00012,2]
[327112489,1715824238577,-2000.0,0.00012,2]
[327112490,1715824238586,-2950.0,0.00012,2]
[327112491,1715824238595,-410.06659556,0.00012,2]
[327112492,1715824238605,-300.0,0.00012,2]
[327112493,1715824238615,-167.97,0.00012033,2]
[327112495,1715824238625,-5000.0,0.00012054,2]
[327112496,1715824238634,-200.0,0.00012055,2]
[327112497,1715824238643,-1000.0,0.00012055,2]
[327112498,1715824238652,-500.0,0.00012055,2]
[327112499,1715824238661,-188.426644,0.00012134,2]
[327112500,1715824238669,-914.72948,0.00012134,2]
[327112501,1715824238678,-302.860266,0.00012134,2]
[327112502,1715824238687,-180.0,0.00012175,2]
[327112503,1715824238696,-154.00800824,0.00012206,2]
[327112504,1715824238705,-3152.65266766,0.00012267,2]
[327112505,1715824238715,-914.72948,0.00012282,2]
[327112506,1715824238724,-302.860266,0.00012282,2]
[327112507,1715824238734,-1000.0,0.00012287,2]
[327112508,1715824238743,-154.00800824,0.00012298,2]
[327112509,1715824238753,-150.84884838,0.00012328,2]
[327112510,1715824238762,-181.15064561,0.00012384,2]
[327112511,1715824238771,-154.00800824,0.00012391,2]
[327112512,1715824238780,-200.0,0.00012403,2]
[327112513,1715824238790,-188.426644,0.0001243,2]
[327112514,1715824238800,-914.72948,0.0001243,2]
[327112515,1715824238810,-302.860266,0.0001243,2]
[327112516,1715824238819,-162.91,0.00012439,2]
[327112517,1715824238829,-154.00800824,0.00012484,2]
[327112518,1715824238840,-252.30363368,0.000125,2]
[327112519,1715824238849,-3005.36250065,0.000125,2]
[327112520,1715824238859,-155.0,0.00012518,2]
[327112521,1715824238868,-1000.0,0.00012519,2]
[327112522,1715824238878,-154.00800824,0.00012577,2]
[327112523,1715824238887,-100000.0,0.00012667,2]
[327112524,1715824238896,-154.00800824,0.00012669,2]
[327112525,1715824238905,-904.0,0.00012672,2]
[327112526,1715824238914,-200.0,0.00012751,2]
[327112527,1715824238924,-1000.0,0.00012751,2]
[327112528,1715824238933,-200.0,0.00012751,2]
[327112529,1715824238944,-500.0,0.00012751,2]
[327112530,1715824238953,-154.00800824,0.00012762,2]
[327112531,1715824238962,-188.6582,0.00012764,2]
[327112533,1715824238972,-1335.07644278,0.00012773,2]
[327112534,1715824238983,-7500.0,0.00012773,2]
[327112535,1715824238993,-196.96528149,0.00012776,2]
[327112536,1715824239002,-390.14513379,0.00012776,2]
[327112537,1715824239012,-350.98080073,0.00012776,2]
[327112538,1715824239022,-1335.07644264,0.00012782,2]
[327112539,1715824239031,-1335.07644264,0.00012791,2]
[327112540,1715824239041,-2006.28556,0.000128,3]
[327112541,1715824239050,-1335.07644264,0.000128,2]
[327112542,1715824239059,-1335.07644264,0.00012809,2]
[327112543,1715824239069,-1335.07644264,0.00012818,2]
[327112544,1715824239079,-1335.07644264,0.00012827,2]
[327112545,1715824239089,-1335.07644264,0.00012837,2]
[327112546,1715824239103,-390.14513377,0.00012838,2]
[327112547,1715824239112,-350.98080071,0.00012838,2]
[327112548,1715824239122,-1335.07644264,0.00012846,2]
[327112549,1715824239131,-155.27,0.00012852,2]
[327112550,1715824239141,-38670.9693247,0.00012853,2]
[327112551,1715824239150,-2412.4176569,0.00012853,2]
[327112552,1715824239160,-908.0323351,0.00012853,2]
[327112553,1715824239170,-2829.9205802,0.00012853,2]
[327112554,1715824239182,-2342.1748464,0.00012853,2]
[327112555,1715824239192,-1335.07644264,0.00012855,2]
[327112556,1715824239202,-200.0,0.00012855,2]
[327112557,1715824239211,-6097.53700086,0.00012855,2]
[327112558,1715824239221,-3000.0,0.00012855,2]
[327112559,1715824239230,-4282.38820054,0.00012862,2]
[327112560,1715824239241,-1041.98422538,0.00012863,3]
[327112561,1715824239250,-1041.98422538,0.00012863,3]
[327112562,1715824239259,-1335.07644264,0.00012864,2]
[327112563,1715824239270,-3606.727,0.00012864,2]
[327112564,1715824239279,-3008094.14197527,0.00012865,2]
[327112565,1715824239394,-18050.72586938,0.00012865,2]
[327112566,1715824239405,-38816.59706,0.00012865,2]
[327112567,1715824239433,-162410.35097634,0.00012865,2]
[327112597,1715824240416,-1846.98288704,0.00012865,2]
[327112599,1715824240427,-284.64976911,0.00012865,2]
[327112601,1715824240438,-21786.0,0.00012865,2]
[327112766,1715824242475,-1893.7,0.00012865,2]
[327112767,1715824242488,-323.224,0.00012865,2]
[327112768,1715824242499,-594.155,0.00012865,2]
[327112769,1715824242716,-3981.85142367,0.00012865,2]
[327112770,1715824242728,-455.07799912,0.00012865,2]
[327112771,1715824242740,-4170.03465609,0.00012865,2]
[327112775,1715824243354,-2016.09437931,0.00012865,2]
[327112776,1715824243366,-2644.49906176,0.00012865,2]
[327112777,1715824243377,-392.30596212,0.00012865,2]
[327112779,1715824243623,-0.49497581,0.00012865,2]
[327112780,1715824243922,-6600.0,0.00012865,2]
[327112805,1715824247662,-6769.7629538,0.00012865,2]
[327112807,1715824248018,-1075.59656657,0.00012864,2]
[327112808,1715824248030,-171.3310329,0.00012864,2]
[327112809,1715824248040,-5326.9637691,0.00012865,2]
[327112810,1715824248051,-58327.84393,0.00012865,2]
[327112811,1715824248145,-883.84175501,0.00012865,2]
[327112812,1715824248157,-372.73645972,0.00012865,2]
[327112813,1715824248168,-16305.72687649,0.00012865,2]
[327112814,1715824248180,-273732.86561935,0.00012865,2]
[327112815,1715824444518,700.0,0.00010506,2]
[327112816,1715824449494,155.5,0.00010993,2]
[327112817,1715824506960,560.62,0.00010913,2]
[327112818,1715824518325,1500.0,0.00010913,2]
[327112819,1715824538375,500.0,0.00010913,2]
[327112820,1715824677740,800.0,9.136e-05,2]
[327112821,1715824679393,800.0,9.958e-05,2]
[327112822,1715824681843,800.0,0.0001078,2]
[327112823,1715824696307,250.0,0.00010982,2]
[327112824,1715824717825,500.0,0.00010506,2]
[327112825,1715824760447,500.0,0.00010506,2]
[327112826,1715824786551,495.7,0.0001097,2]
[327112827,1715824803642,900.0,0.00010506,2]
[327112828,1715824851179,160.0,0.00010989,2]
[327112829,1715825033232,162.91,0.00010959,2]
[327112830,1715825061706,250.0,0.00010962,2]
[327112831,1715825075640,4316.12265501,0.00010989,2]
[327112846,1715825433213,-161.96187779,0.00010805,2]
[327112847,1715825433223,-525.57207618,0.00010806,2]
[327112848,1715825433236,-154.00800829,0.00010807,2]
[327112849,1715825433247,-2327.83056448,0.00010817,2]
[327112851,1715825433256,-6904.9569,0.00010818,2]
[327112852,1715825433266,-1391.09601204,0.00010905,2]
[327112853,1715825433277,-23880.0,0.00010906,2]
[327112854,1715825433288,-968.0,0.00010915,2]
[327112855,1715825433298,-18057.16730737,0.00010918,2]
[327112856,1715825433310,-625.3983,0.00010918,2]
[327112857,1715825433322,-6271.32552108,0.00010918,2]
[327112858,1715825433334,-4321.14263448,0.00010918,2]
[327112859,1715825433347,-29958.63199202,0.00010918,2]
[327112860,1715825433482,-460.43123519,0.00010918,2]
[327112861,1715825433496,-464.5794175,0.00010918,2]
[327112862,1715825433509,-3781.83419236,0.00010918,2]
[327112863,1715825433519,-96886.18760529,0.00010989,2]
[327112864,1715825433531,-19518.22170971,0.00010989,2]
[327112865,1715825433543,-459.488712,0.00010989,2]
[327112866,1715825433556,-1372.00002,0.00010989,2]
[327112867,1715825433568,-21033.07910543,0.00010989,2]
[327112868,1715825433579,-250.0,0.00010999,2]
[327112869,1715825433589,-373.41,0.0001101,2]
[327112870,1715825433599,-499.99,0.0001101,2]
[327112871,1715825433609,-154.00800825,0.00011011,2]
[327112872,1715825433619,-2331.8,0.00011032,2]
[327112873,1715825433629,-154.00800825,0.00011214,2]
[327112874,1715825433639,-150.46,0.00011237,2]
[327112875,1715825433649,-150.46,0.00011242,2]
[327112876,1715825433659,-150.46,0.00011246,2]
[327112877,1715825433669,-150.46,0.0001125,2]
[327112878,1715825433680,-150.46,0.00011255,2]
[327112879,1715825433690,-180.13,0.00011255,2]
[327112880,1715825433701,-150.46,0.00011259,2]
[327112881,1715825433710,-150.46,0.00011263,2]
[327112882,1715825433720,-150.46,0.00011268,2]
[327112883,1715825433731,-150.46,0.00011272,2]
[327112884,1715825433741,-150.46,0.00011276,2]
[327112885,1715825433751,-150.46,0.00011281,2]
[327112887,1715825433761,-150.46,0.00011285,2]
[327112888,1715825433770,-150.46,0.00011289,2]
[327112889,1715825433779,-150.46,0.00011294,2]
[327112890,1715825433789,-900.0,0.00011328,2]
[327112891,1715825433799,-154.00800825,0.00011418,2]
[327112892,1715825433808,-19603.71520492,0.000116,2]
[327112893,1715825433818,-800.0,0.00011602,2]
[327112894,1715825433827,-154.00800825,0.00011622,2]
[327112895,1715825433837,-1000.0,0.00011706,2]
[327112896,1715825433848,-154.00800825,0.00011825,2]
[327112897,1715825433857,-457.52911222,0.00011897,2]
[327112898,1715825433867,-153.16074151,0.00011898,2]
[327112899,1715825433876,-240.63848499,0.00011898,2]
[327112900,1715825433885,-2466.5032,0.000119,2]
[327112901,1715825433894,-425.3947,0.00011953,2]
[327112902,1715825433904,-2474.9916,0.00011953,2]
[327112904,1715825433914,-4451.8771,0.00011953,2]
[327112906,1715825433923,-2383.6753,0.00011953,2]
[327112908,1715825433932,-410.06659556,0.00012,2]
[327112910,1715825433942,-210.0,0.00012008,2]
[327112912,1715825433951,-154.00800825,0.00012029,2]
[327112914,1715825433960,-5000.0,0.00012054,2]
[327112916,1715825433971,-869.11,0.00012055,2]
[327112918,1715825433980,-869.11,0.00012055,2]
[327112920,1715825433990,-1138.38,0.00012055,2]
[327112922,1715825434000,-204.93,0.00012055,2]
[327112924,1715825434009,-418.39,0.00012141,2]
[327112926,1715825434018,-500.0,0.0001215,2]
[327112928,1715825434029,-500.0,0.0001215,2]
[327112929,1715825434039,-900.0,0.0001215,2]
[327112931,1715825434048,-180.0,0.00012175,2]
[327112932,1715825434058,-1299.0547957,0.0001222,2]
[327112933,1715825434069,-200.0,0.00012231,2]
[327112934,1715825434079,-154.00800825,0.00012232,2]
[327112935,1715825434089,-968.0,0.00012279,2]
[327112936,1715825434099,-500.0,0.00012328,2]
[327112937,1715825434108,-556.9,0.00012328,2]
[327112938,1715825434119,-743.04,0.00012328,2]
[327112939,1715825434128,-699.85,0.00012328,2]
[327112940,1715825434138,-500.0,0.00012328,2]
[327112941,1715825434148,-500.0,0.00012328,2]
[327112942,1715825434158,-748.11,0.00012328,2]
[327112943,1715825434168,-1217.39,0.00012328,2]
[327112944,1715825434177,-590.24,0.00012328,2]
[327112945,1715825434187,-1281.57,0.00012328,2]
[327112946,1715825434198,-2763.11,0.00012328,2]
[327112947,1715825434208,-647.32,0.00012328,2]
[327112948,1715825434218,-1250.69,0.00012328,2]
[327112949,1715825434228,-500.0,0.00012328,2]
[327112950,1715825434237,-2590.43,0.00012328,2]
[327112951,1715825434247,-1593.93,0.00012328,2]
[327112952,1715825434257,-1362.68,0.00012328,2]
[327112953,1715825434266,-500.0,0.00012328,2]
[327112954,1715825434276,-500.0,0.00012328,2]
[327112955,1715825434286,-708.24,0.00012328,2]
[327112956,1715825434295,-834.95,0.00012328,2]
[327112957,1715825434305,-500.0,0.00012328,2]
[327112958,1715825434315,-1257.04,0.00012328,2]
[327112959,1715825434324,-758.98,0.00012328,2]
[327112960,1715825434334,-359.57314003,0.00012328,2]
[327112961,1715825434343,-9880.71,0.00012328,2]
[327112962,1715825434353,-197.57502972,0.00012328,2]
[327112963,1715825434363,-500.0,0.00012328,2]
[327112964,1715825434373,-500.0,0.00012328,2]
[327112965,1715825434382,-500.0,0.00012328,2]
[327112966,1715825434392,-3577.6762,0.00012353,2]
[327112967,1715825434405,-200.0,0.00012407,2]
[327112968,1715825434415,-1000.0,0.00012407,2]
[327112969,1715825434425,-500.0,0.00012407,2]
[327112970,1715825434434,-2060.68604399,0.00012421,2]
[327112971,1715825434445,-800.0,0.00012424,2]
[327112972,1715825434454,-154.00800825,0.00012436,2]
[327112973,1715825434464,-418.68,0.00012441,2]
[327112974,1715825434474,-217.25,0.00012441,2]
[327112975,1715825434488,-3720.802,0.00012453,2]
[327112976,1715825434499,-155.0,0.000125,2]
[327112977,1715825434509,-3620.595,0.00012537,2]
[327112978,1715825434520,-3394.5894,0.00012573,2]
[327112979,1715825434530,-1957.4488,0.00012573,2]
[327112980,1715825434540,-523.56,0.00012578,2]
[327112981,1715825434550,-277.8,0.00012578,2]
[327112982,1715825434559,-319.0,0.00012578,2]
[327112983,1715825434568,-150.0,0.00012578,2]
[327112984,1715825434578,-351.48,0.00012578,2]